[Event "11th LCC FIDE Open 2019"]
[Site "London"]
[Date "2019.12.01"]
[Round "4.14"]
[White "Dong, Bao Nghia"]
[Black "Merry, Alan B"]
[Result "0-1"]
[ECO "A47"]
[WhiteElo "2217"]
[BlackElo "2426"]
[Annotator "ChessBase"]
[PlyCount "108"]
[EventDate "2019.11.29"]
[EventType "swiss"]
[EventCountry "ENG"]
[SourceTitle "playchess.com"]
[Source "ChessBase"]
[SourceQuality "1"]
[TimeControl "40/5400+30:1800+30"]

1. d4 {[%emt 0:00:04]} Nf6 {[%emt 0:00:00]} 2. Nf3 {[%emt 0:00:08]} b6 {[%emt 0:00:00]} 3. Bf4 {[%emt 0:00:07]} Bb7 {[%emt 0:00:00]} 4. h3 {[%emt 0:00:07]} g6 {[%emt 0:00:00]} 5. e3 {[%emt 0:00:05]} Bg7 {[%emt 0:00:00]} 6. a4 {[%emt 0:00:07]} a6 {[%emt 0:00:36]} 7. Nbd2 {[%emt 0:00:23]} O-O {[%emt 0:00:08]} 8. Bh2 {[%emt 0:00:18]} d6 {[%emt 0:01:26]} 9. Bc4 {[%emt 0:00:09]} Nbd7 {[%emt 0:00:50]} 10. O-O {[%emt 0:00:09]} Qe8 {[%emt 0:00:03]} 11. b4 {[%emt 0:01:36]} e5 {[%emt 0:00:28]} 12. Ra3 {[%emt 0:00:15]} e4 {[%emt 0:01:13]} 13. Ne1 {[%emt 0:00:07]} b5 {[%emt 0:00:20]} 14. axb5 {[%emt 0:00:30]} Nb6 {[%emt 0:00:36]} 15. bxa6 {[%emt 0:00:59]} Nxc4 {[%emt 0:00:23]} 16. axb7 {[%emt 0:00:05]} Rxa3 {[%emt 0:00:09]} 17. Nxc4 {[%emt 0:00:06]} Ra7 {[%emt 0:00:22]} 18. Nxd6 {[%emt 0:02:30]} cxd6 {[%emt 0:09:42]} 19. Bxd6 {[%emt 0:00:13]} Rxb7 {[%emt 0:01:06]} 20. c4 {[%emt 0:07:48]} Qe6 {[%emt 0:19:25]} 21. Bxf8 {[%emt 0:00:14]} Bxf8 {[%emt 0:00:03]} 22. d5 {[%emt 0:00:24]} Qe5 {[%emt 0:00:46]} 23. b5 {[%emt 0:01:16]} Bd6 {[%emt 0:09:41]} 24. g3 {[%emt 0:02:02]} Nd7 {[%emt 0:06:42]} 25. Ng2 {[%emt 0:04:55]} Nb6 {[%emt 0:08:57]} 26. Qb3 {[%emt 0:11:37]} Ra7 {[%emt 0:02:33]} 27. Rc1 {[%emt 0:01:31]} Ba3 {[%emt 0:02:31]} 28. Rd1 {[%emt 0:03:43]} Bc5 {[%emt 0:01:25]} 29. Rc1 {[%emt 0:01:30]} g5 {[%emt 0:07:43]} 30. Qd1 {[%emt 0:01:29]} h6 {[%emt 0:08:33]} 31. Qh5 {[%emt 0:00:53]} Qf6 {[%emt 0:02:06]} 32. Qe2 {[%emt 0:01:41]} Ra4 {[%emt 0:04:00]} 33. Ne1 {[%emt 0:03:12]} Rb4 {[%emt 0:00:50]} 34. Qg4 {[%emt 0:02:04]} Rb2 {[%emt 0:07:27]} 35. Nc2 {[%emt 0:00:10]} Qc3 {[%emt 0:02:19]} 36. Qd1 {[%emt 0:00:29]} Qd3 {[%emt 0:03:06]} 37. Nd4 {[%emt 0:01:55]} Bxd4 {[%emt 0:01:01]} 38. exd4 {[%emt 0:00:49]} Nxc4 {[%emt 0:00:29]} 39. Qe1 {[%emt 0:03:57]} Qxd4 {[%emt 0:00:53]} 40. d6 {[%emt 0:00:20]} Nxd6 {[%emt 0:01:00]} 41. Rd1 {[%emt 0:30:14]} Qf6 {[%emt 0:30:51]} 42. Rb1 {[%emt 0:04:10]} Rxb5 {[%emt 0:00:00]} 43. Rxb5 {[%emt 0:00:00]} Nxb5 {[%emt 0:00:00]} 44. Qxe4 {[%emt 0:00:00]} Nd6 {[%emt 0:00:00]} 45. Qg4 {[%emt 0:00:00]} Kh7 {[%emt 0:00:00]} 46. Qd1 {[%emt 0:00:00]} Nf5 {[%emt 0:00:00]} 47. Qd3 {[%emt 0:00:00]} Qg6 {[%emt 0:00:00]} 48. Qd7 {[%emt 0:00:00]} h5 {[%emt 0:00:00]} 49. g4 {[%emt 0:00:00]} Nh4 {[%emt 0:00:00]} 50. Qe7 {[%emt 0:00:00]} hxg4 {[%emt 0:00:00]} 51. hxg4 {[%emt 0:00:00]} Qe6 {[%emt 0:00:00]} 52. Qb4 {[%emt 0:00:00]} Qc6 {[%emt 0:00:00]} 53. Kf1 {[%emt 0:00:00]} Qh1+ {[%emt 0:00:00]} 54. Ke2 {[%emt 0:00:00]} Qf3+ {[%emt 0:00:00]} 0-1

[Event "11th LCC FIDE Open 2019"]
[Site "London"]
[Date "2019.12.01"]
[Round "4.16"]
[White "Percivaldi, Martin"]
[Black "Hill, Alistair"]
[Result "1/2-1/2"]
[ECO "B38"]
[WhiteElo "2384"]
[BlackElo "2193"]
[Annotator "ChessBase"]
[PlyCount "105"]
[EventDate "2019.11.29"]
[EventType "swiss"]
[EventCountry "ENG"]
[SourceTitle "playchess.com"]
[Source "ChessBase"]
[SourceQuality "1"]
[TimeControl "40/5400+30:1800+30"]

1. Nf3 {[%emt 0:00:00]} Nf6 {[%emt 0:00:17]} 2. c4 {[%emt 0:00:00]} c5 {[%emt 0:00:08]} 3. Nc3 {[%emt 0:00:08]} g6 {[%emt 0:03:10]} 4. e4 {[%emt 0:01:35]} d6 {[%emt 0:00:16]} 5. d4 {[%emt 0:00:14]} cxd4 {[%emt 0:00:48]} 6. Nxd4 {[%emt 0:00:12]} Bg7 {[%emt 0:00:03]} 7. Be2 {[%emt 0:00:16]} O-O {[%emt 0:00:10]} 8. Be3 {[%emt 0:00:16]} Nc6 {[%emt 0:00:06]} 9. O-O {[%emt 0:00:17]} Bd7 {[%emt 0:00:20]} 10. Qd2 {[%emt 0:00:30]} Nxd4 {[%emt 0:01:32]} 11. Bxd4 {[%emt 0:00:41]} Bc6 {[%emt 0:00:05]} 12. f3 {[%emt 0:00:11]} Qa5 {[%emt 0:03:43]} 13. Rac1 {[%emt 0:06:50]} Rfc8 {[%emt 0:00:31]} 14. b3 {[%emt 0:02:46]} a6 {[%emt 0:00:23]} 15. Rc2 {[%emt 0:01:25]} Nd7 {[%emt 0:06:54]} 16. Be3 {[%emt 0:01:07]} h5 {[%emt 0:38:04]} 17. Rb1 {[%emt 0:04:42]} Qd8 {[%emt 0:00:18]} 18. b4 {[%emt 0:02:45]} b6 {[%emt 0:00:12]} 19. a3 {[%emt 0:03:18]} a5 {[%emt 0:06:13]} 20. Qc1 {[%emt 0:14:39]} axb4 {[%emt 0:00:38]} 21. axb4 {[%emt 0:00:15]} Bb7 {[%emt 0:02:55]} 22. Nd5 {[%emt 0:05:49]} e6 {[%emt 0:09:19]} 23. Nf4 {[%emt 0:05:55]} Qe7 {[%emt 0:02:11]} 24. Nd3 {[%emt 0:07:13]} d5 {[%emt 0:05:35]} 25. exd5 {[%emt 0:02:16]} exd5 {[%emt 0:00:02]} 26. c5 {[%emt 0:00:20]} bxc5 {[%emt 0:02:01]} 27. bxc5 {[%emt 0:05:55]} Bc6 {[%emt 0:00:39]} 28. Nb4 {[%emt 0:01:03]} Ne5 {[%emt 0:03:57]} 29. Qd2 {[%emt 0:06:10]} Nc4 {[%emt 0:04:52]} 30. Bxc4 {[%emt 0:01:26]} dxc4 {[%emt 0:00:02]} 31. Nxc6 {[%emt 0:00:22]} Rxc6 {[%emt 0:00:03]} 32. Rxc4 {[%emt 0:01:23]} Rd8 {[%emt 0:05:51]} 33. Re4 {[%emt 0:02:34]} Rxd2 {[%emt 0:01:44]} 34. Rxe7 {[%emt 0:00:06]} Bd4 {[%emt 0:00:07]} 35. Bxd4 {[%emt 0:05:31]} Rxd4 {[%emt 0:00:02]} 36. Rbb7 {[%emt 0:03:24]} Rf4 {[%emt 0:00:40]} 37. Rec7 {[%emt 0:04:06]} Rxc7 {[%emt 0:00:09]} 38. Rxc7 {[%emt 0:00:04]} Rc4 {[%emt 0:00:04]} 39. Kf2 {[%emt 0:01:19]} Rc2+ {[%emt 0:01:29]} 40. Kg3 {[%emt 0:00:12]} Kg7 {[%emt 0:00:08]} 41. h4 {[%emt 0:30:36]} Kf6 {[%emt 0:30:09]} 42. Rc8 {[%emt 0:00:20]} Ke7 {[%emt 0:01:29]} 43. Rc7+ {[%emt 0:00:23]} Ke6 {[%emt 0:02:02]} 44. c6 {[%emt 0:01:49]} Rc4 {[%emt 0:01:27]} 45. Kh3 {[%emt 0:01:27]} Rc3 {[%emt 0:01:11]} 46. Kh2 {[%emt 0:00:06]} Rc2 {[%emt 0:00:00]} 47. Kh3 {[%emt 0:00:00]} Rc3 {[%emt 0:00:00]} 48. Rc8 {[%emt 0:00:00]} Kd6 {[%emt 0:00:00]} 49. Rf8 {[%emt 0:00:00]} Ke7 {[%emt 0:00:00]} 50. Rc8 {[%emt 0:00:00]} Kd6 {[%emt 0:00:00]} 51. Rd8+ {[%emt 0:00:00]} Ke6 {[%emt 0:00:00]} 52. Rc8 {[%emt 0:00:00]} Kd6 53. Rd8+ {[%emt 0:00:00]} 1/2-1/2

[Event "11th LCC FIDE Open 2019"]
[Site "London"]
[Date "2019.12.01"]
[Round "4.17"]
[White "Abrahams, Daniel"]
[Black "Vaishali R"]
[Result "0-1"]
[ECO "A30"]
[WhiteElo "2185"]
[BlackElo "2376"]
[Annotator "ChessBase"]
[PlyCount "114"]
[EventDate "2019.11.29"]
[EventType "swiss"]
[EventCountry "ENG"]
[SourceTitle "playchess.com"]
[Source "ChessBase"]
[SourceQuality "1"]
[TimeControl "40/5400+30:1800+30"]

1. c4 {[%emt 1:03:07]} b6 {[%emt 0:03:41]} 2. Nf3 {[%emt 0:03:00]} Bb7 {[%emt 0:00:10]} 3. e3 {[%emt 0:00:05]} Nf6 {[%emt 0:00:55]} 4. b3 {[%emt 0:00:00]} g6 {[%emt 0:01:20]} 5. Bb2 {[%emt 0:00:00]} Bg7 {[%emt 0:00:05]} 6. Be2 {[%emt 0:00:00]} c5 {[%emt 0:00:25]} 7. O-O {[%emt 0:00:00]} O-O {[%emt 0:00:11]} 8. Qc2 {[%emt 0:00:00]} Nc6 {[%emt 0:01:11]} 9. a3 {[%emt 0:00:00]} d5 {[%emt 0:02:04]} 10. cxd5 {[%emt 0:00:00]} Qxd5 {[%emt 0:00:09]} 11. d3 {[%emt 0:00:00]} Rac8 {[%emt 0:04:33]} 12. Nbd2 {[%emt 0:00:00]} Rfd8 {[%emt 0:01:29]} 13. Rac1 {[%emt 0:00:00]} Ba6 {[%emt 0:14:59]} 14. Nc4 {[%emt 0:00:00]} b5 {[%emt 0:01:15]} 15. Ncd2 {[%emt 0:00:00]} Nb8 {[%emt 0:01:45]} 16. Rfe1 {[%emt 0:00:00]} Bb7 {[%emt 0:02:06]} 17. Qb1 {[%emt 0:00:00]} a6 {[%emt 0:01:41]} 18. d4 {[%emt 0:00:00]} Nbd7 {[%emt 0:03:57]} 19. Bf1 {[%emt 0:00:00]} Ne4 {[%emt 0:07:24]} 20. Nxe4 {[%emt 0:00:00]} Qxe4 {[%emt 0:00:03]} 21. dxc5 {[%emt 0:00:00]} Qxb1 {[%emt 0:07:58]} 22. Rxb1 {[%emt 0:00:00]} Nxc5 {[%emt 0:01:10]} 23. Bxg7 {[%emt 0:00:00]} Kxg7 {[%emt 0:00:04]} 24. b4 {[%emt 0:00:00]} Na4 {[%emt 0:08:44]} 25. Rbc1 {[%emt 0:00:00]} Nc3 {[%emt 0:04:02]} 26. Ne5 {[%emt 0:00:00]} Na2 {[%emt 0:08:59]} 27. Rxc8 {[%emt 0:00:00]} Rxc8 {[%emt 0:00:12]} 28. Ra1 {[%emt 0:00:00]} Nc1 {[%emt 0:07:31]} 29. Nd3 {[%emt 0:10:58]} Nb3 {[%emt 0:01:04]} 30. Rb1 {[%emt 0:00:28]} Rc3 {[%emt 0:01:51]} 31. Rxb3 {[%emt 0:02:46]} Rxb3 {[%emt 0:00:05]} 32. Nc5 {[%emt 0:00:05]} Rxa3 {[%emt 0:01:54]} 33. Nxb7 {[%emt 0:00:06]} Rb3 {[%emt 0:00:35]} 34. Nc5 {[%emt 0:00:13]} Rxb4 {[%emt 0:00:42]} 35. Nxa6 {[%emt 0:00:09]} Rb1 {[%emt 0:00:10]} 36. g4 {[%emt 0:03:18]} b4 {[%emt 0:00:38]} 37. Nxb4 {[%emt 0:00:13]} Rxb4 {[%emt 0:00:02]} 38. h3 {[%emt 0:00:18]} Kf6 {[%emt 0:01:08]} 39. Kg2 {[%emt 0:00:06]} g5 {[%emt 0:01:32]} 40. Kg3 {[%emt 0:00:11]} Ke5 {[%emt 0:00:09]} 41. Bd3 {[%emt 0:30:16]} h6 {[%emt 0:30:10]} 42. h4 {[%emt 0:00:31]} e6 {[%emt 0:02:21]} 43. hxg5 {[%emt 0:00:34]} hxg5 {[%emt 0:00:02]} 44. Bc2 {[%emt 0:02:47]} Rc4 {[%emt 0:02:23]} 45. Bd3 {[%emt 0:00:08]} Rc3 {[%emt 0:00:07]} 46. Bb1 {[%emt 0:00:34]} Kd5 {[%emt 0:03:30]} 47. Bh7 {[%emt 0:00:16]} Rc1 {[%emt 0:01:12]} 48. Kf3 {[%emt 0:00:17]} Rh1 {[%emt 0:01:59]} 49. Bd3 {[%emt 0:01:12]} Rg1 {[%emt 0:01:34]} 50. Bh7 {[%emt 0:00:20]} Ra1 {[%emt 0:00:31]} 51. Bg8 {[%emt 0:00:51]} Ra8 {[%emt 0:01:45]} 52. Bh7 {[%emt 0:00:09]} Kc4 {[%emt 0:00:23]} 53. Ke2 {[%emt 0:01:07]} Kc3 {[%emt 0:00:48]} 54. f4 {[%emt 0:00:21]} f6 {[%emt 0:00:00]} 55. fxg5 {[%emt 0:00:00]} fxg5 {[%emt 0:00:00]} 56. Kf3 {[%emt 0:00:00]} Kd2 {[%emt 0:00:00]} 57. Ke4 {[%emt 0:00:00]} Ra4+ {[%emt 0:00:00]} 0-1

[Event "11th LCC FIDE Open 2019"]
[Site "London"]
[Date "2019.12.01"]
[Round "4.19"]
[White "Ogunshola, Olugbemiga (Ben)"]
[Black "Beinoras, Mindaugas"]
[Result "0-1"]
[ECO "A12"]
[WhiteElo "2169"]
[BlackElo "2350"]
[Annotator "ChessBase"]
[PlyCount "65"]
[EventDate "2019.11.29"]
[EventType "swiss"]
[EventCountry "ENG"]
[SourceTitle "playchess.com"]
[Source "ChessBase"]
[SourceQuality "1"]
[TimeControl "40/5400+30:1800+30"]

1. c4 {[%emt 0:00:00]} c6 {[%emt 0:00:00]} 2. Nf3 {[%emt 0:00:48]} d5 {[%emt 0:00:16]} 3. b3 {[%emt 0:00:43]} Bf5 {[%emt 0:00:52]} 4. g3 {[%emt 0:01:13]} Nf6 {[%emt 0:03:19]} 5. Bg2 {[%emt 0:00:24]} e6 {[%emt 0:00:26]} 6. O-O {[%emt 0:00:12]} h6 {[%emt 0:00:09]} 7. Bb2 {[%emt 0:02:00]} Nbd7 {[%emt 0:00:18]} 8. d3 {[%emt 0:02:46]} Bc5 {[%emt 0:00:23]} 9. Nbd2 {[%emt 0:03:55]} O-O {[%emt 0:05:20]} 10. Qe1 {[%emt 0:09:01]} Bh7 {[%emt 0:02:03]} 11. e4 {[%emt 0:03:10]} a5 {[%emt 0:25:22]} 12. a3 {[%emt 0:14:12]} Be7 {[%emt 0:05:00]} 13. Qe2 {[%emt 0:08:48]} Nc5 {[%emt 0:09:17]} 14. Ne5 {[%emt 0:02:02]} dxe4 {[%emt 0:08:08]} 15. dxe4 {[%emt 0:01:41]} Qd6 {[%emt 0:04:23]} 16. Rfd1 {[%emt 0:02:50]} Rfd8 {[%emt 0:00:43]} 17. Rac1 {[%emt 0:05:27]} Qc7 {[%emt 0:01:03]} 18. h3 {[%emt 0:04:07]} Rxd2 {[%emt 0:02:29]} 19. Qxd2 {[%emt 0:15:33]} Nxb3 {[%emt 0:00:13]} 20. Qe3 {[%emt 0:03:01]} Nxc1 {[%emt 0:00:17]} 21. Rxc1 {[%emt 0:00:04]} Rd8 {[%emt 0:07:59]} 22. c5 {[%emt 0:04:28]} Nd7 {[%emt 0:00:37]} 23. Ng4 {[%emt 0:08:31]} e5 {[%emt 0:07:15]} 24. Bf1 {[%emt 0:01:24]} h5 {[%emt 0:04:39]} 25. Nh2 {[%emt 0:00:49]} Nf6 {[%emt 0:01:29]} 26. f3 {[%emt 0:00:06]} Nd7 {[%emt 0:01:03]} 27. Kg2 {[%emt 0:00:49]} Nxc5 {[%emt 0:00:44]} 28. Bc4 {[%emt 0:02:47]} Qd6 {[%emt 0:01:32]} 29. Nf1 {[%emt 0:00:13]} Nd3 {[%emt 0:01:00]} 30. Rd1 {[%emt 0:03:00]} Nf4+ {[%emt 0:00:41]} 31. gxf4 {[%emt 0:00:09]} Qg6+ {[%emt 0:01:02]} 32. Ng3 {[%emt 0:00:00]} Rxd1 {[%emt 0:00:00]} 33. Bxe5 {[%emt 0:00:00]} 0-1

[Event "11th LCC FIDE Open 2019"]
[Site "London"]
[Date "2019.12.01"]
[Round "4.20"]
[White "Bates, Richard A"]
[Black "Tanmay Chopra"]
[Result "1-0"]
[ECO "E01"]
[WhiteElo "2342"]
[BlackElo "2082"]
[Annotator "ChessBase"]
[PlyCount "55"]
[EventDate "2019.11.29"]
[EventType "swiss"]
[EventCountry "ENG"]
[SourceTitle "playchess.com"]
[Source "ChessBase"]
[SourceQuality "1"]
[TimeControl "40/5400+30:1800+30"]

1. d4 {[%emt 0:00:00]} Nf6 {[%emt 0:08:20]} 2. Nf3 {[%emt 0:00:49]} d5 {[%emt 0:00:23]} 3. c4 {[%emt 0:00:14]} e6 {[%emt 0:00:07]} 4. g3 {[%emt 0:01:31]} dxc4 {[%emt 0:00:09]} 5. Bg2 {[%emt 0:00:07]} c6 {[%emt 0:00:06]} 6. O-O {[%emt 0:04:54]} b5 {[%emt 0:00:05]} 7. Nc3 {[%emt 0:01:20]} Nbd7 {[%emt 0:00:20]} 8. Qc2 {[%emt 0:06:41]} Bb7 {[%emt 0:04:20]} 9. e4 {[%emt 0:04:46]} Qc8 {[%emt 0:07:22]} 10. b3 {[%emt 0:04:14]} b4 {[%emt 0:01:48]} 11. Na4 {[%emt 0:02:52]} c3 {[%emt 0:03:08]} 12. a3 {[%emt 0:01:00]} a5 {[%emt 0:08:15]} 13. axb4 {[%emt 0:03:51]} axb4 {[%emt 0:00:05]} 14. Bf4 {[%emt 0:03:41]} Ba6 {[%emt 0:16:57]} 15. Rfe1 {[%emt 0:03:09]} Bb5 {[%emt 0:08:37]} 16. d5 {[%emt 0:08:52]} Bxa4 {[%emt 0:03:02]} 17. bxa4 {[%emt 0:06:55]} cxd5 {[%emt 0:01:21]} 18. exd5 {[%emt 0:09:25]} Nxd5 {[%emt 0:00:02]} 19. Nd4 {[%emt 0:02:27]} Nxf4 {[%emt 0:05:09]} 20. gxf4 {[%emt 0:08:54]} Bc5 {[%emt 0:07:10]} 21. Nxe6 {[%emt 0:03:29]} fxe6 {[%emt 0:00:38]} 22. Rxe6+ {[%emt 0:00:21]} Kd8 {[%emt 0:01:37]} 23. Rc6 {[%emt 0:02:38]} Qb8 {[%emt 0:00:01]} 24. Rd1 {[%emt 0:00:36]} Qa7 {[%emt 0:01:33]} 25. Bh3 {[%emt 0:03:52]} Bxf2+ {[%emt 0:03:31]} 26. Kf1 {[%emt 0:01:34]} Bd4 {[%emt 0:02:07]} 27. Rd6 {[%emt 0:00:06]} Rb8 {[%emt 0:06:36]} 28. R1xd4 {[%emt 0:01:26]} 1-0

[Event "11th LCC FIDE Open 2019"]
[Site "London"]
[Date "2019.12.01"]
[Round "4.22"]
[White "Bates, Caspar J"]
[Black "Cox, John J"]
[Result "0-1"]
[ECO "A43"]
[WhiteElo "2120"]
[BlackElo "2306"]
[Annotator "ChessBase"]
[PlyCount "90"]
[EventDate "2019.11.29"]
[EventType "swiss"]
[EventCountry "ENG"]
[SourceTitle "playchess.com"]
[Source "ChessBase"]
[SourceQuality "1"]
[TimeControl "40/5400+30:1800+30"]

1. d4 {[%emt 0:00:00]} c5 {[%emt 0:09:59]} 2. d5 {[%emt 0:00:00]} Nf6 {[%emt 0:00:45]} 3. Nc3 {[%emt 0:03:24]} d6 {[%emt 0:03:16]} 4. e4 {[%emt 0:00:54]} g6 {[%emt 0:00:10]} 5. Be2 {[%emt 0:04:47]} Bg7 {[%emt 0:00:06]} 6. Be3 {[%emt 0:02:38]} Na6 {[%emt 0:03:53]} 7. Qd2 {[%emt 0:02:35]} Nc7 {[%emt 0:11:57]} 8. Bh6 {[%emt 0:09:01]} Bxh6 {[%emt 0:06:00]} 9. Qxh6 {[%emt 0:00:02]} e5 {[%emt 0:03:23]} 10. dxe6 {[%emt 0:08:50]} Bxe6 {[%emt 0:01:44]} 11. O-O-O {[%emt 0:06:53]} Qe7 {[%emt 0:00:53]} 12. e5 {[%emt 0:18:07]} dxe5 {[%emt 0:01:24]} 13. Nf3 {[%emt 0:10:35]} Bd7 {[%emt 0:11:11]} 14. Ng5 {[%emt 0:07:14]} O-O-O {[%emt 0:06:39]} 15. Kb1 {[%emt 0:05:19]} Ne6 {[%emt 0:09:20]} 16. Nxe6 {[%emt 0:01:05]} Qxe6 {[%emt 0:02:44]} 17. Qe3 {[%emt 0:00:37]} b6 {[%emt 0:01:53]} 18. Ba6+ {[%emt 0:00:59]} Kb8 {[%emt 0:01:39]} 19. Bc4 {[%emt 0:00:02]} Qe7 {[%emt 0:02:45]} 20. Rhe1 {[%emt 0:04:52]} Bc6 {[%emt 0:06:34]} 21. Rxd8+ {[%emt 0:03:36]} Rxd8 {[%emt 0:00:06]} 22. Qg5 {[%emt 0:00:29]} e4 {[%emt 0:02:29]} 23. f3 {[%emt 0:00:28]} Re8 {[%emt 0:02:06]} 24. fxe4 {[%emt 0:01:38]} Nxe4 {[%emt 0:01:51]} 25. Qf4+ {[%emt 0:02:34]} Qe5 {[%emt 0:00:30]} 26. Qxe5+ {[%emt 0:00:15]} Rxe5 {[%emt 0:00:02]} 27. Nxe4 {[%emt 0:00:58]} Rxe4 {[%emt 0:01:03]} 28. Rxe4 {[%emt 0:00:18]} Bxe4 {[%emt 0:00:02]} 29. Bxf7 {[%emt 0:00:01]} Bxg2 {[%emt 0:00:12]} 30. Kc1 {[%emt 0:00:30]} Kc7 {[%emt 0:01:26]} 31. Kd2 {[%emt 0:00:02]} Kd6 {[%emt 0:00:18]} 32. Ke3 {[%emt 0:00:11]} Bd5 {[%emt 0:01:35]} 33. Bxd5 {[%emt 0:03:01]} Kxd5 {[%emt 0:00:06]} 34. Kf4 {[%emt 0:00:13]} h6 {[%emt 0:00:22]} 35. c3 {[%emt 0:00:02]} Ke6 {[%emt 0:00:24]} 36. Ke4 {[%emt 0:01:29]} g5 {[%emt 0:00:12]} 37. a4 {[%emt 0:00:39]} h5 {[%emt 0:01:29]} 38. c4 {[%emt 0:01:23]} g4 {[%emt 0:00:44]} 39. Kf4 {[%emt 0:00:40]} Kf6 {[%emt 0:00:05]} 40. a5 {[%emt 0:01:01]} bxa5 {[%emt 0:00:27]} 41. b3 {[%emt 0:30:03]} a4 {[%emt 0:30:45]} 42. bxa4 {[%emt 0:00:07]} a5 {[%emt 0:00:04]} 43. Ke4 {[%emt 0:01:52]} h4 {[%emt 0:01:06]} 44. Kf4 {[%emt 0:00:16]} g3 {[%emt 0:00:04]} 45. hxg3 {[%emt 0:00:14]} hxg3 {[%emt 0:00:06]} 0-1

[Event "11th LCC FIDE Open 2019"]
[Site "London"]
[Date "2019.12.01"]
[Round "4.23"]
[White "Pollack, Oscar"]
[Black "Wu, Li"]
[Result "0-1"]
[ECO "B67"]
[WhiteElo "2112"]
[BlackElo "2293"]
[Annotator "ChessBase"]
[PlyCount "90"]
[EventDate "2019.11.29"]
[EventType "swiss"]
[EventCountry "ENG"]
[SourceTitle "playchess.com"]
[Source "ChessBase"]
[SourceQuality "1"]
[TimeControl "40/5400+30:1800+30"]

1. e4 {[%emt 0:00:00]} c5 {[%emt 0:00:00]} 2. Nf3 {[%emt 0:00:00]} d6 {[%emt 0:00:00]} 3. d4 {[%emt 0:00:00]} cxd4 {[%emt 0:00:00]} 4. Nxd4 {[%emt 0:00:00]} Nf6 {[%emt 0:00:00]} 5. Nc3 {[%emt 0:00:00]} Nc6 {[%emt 0:00:00]} 6. Bg5 {[%emt 0:01:16]} e6 {[%emt 0:00:06]} 7. Qd2 {[%emt 0:00:14]} a6 {[%emt 0:00:12]} 8. O-O-O {[%emt 0:01:36]} Bd7 {[%emt 0:00:28]} 9. f3 {[%emt 0:03:14]} b5 {[%emt 0:04:54]} 10. Nxc6 {[%emt 0:11:51]} Bxc6 {[%emt 0:00:30]} 11. Qe1 {[%emt 0:13:45]} h6 {[%emt 0:20:05]} 12. Bf4 {[%emt 0:04:03]} Qb8 {[%emt 0:09:12]} 13. Nd5 {[%emt 0:06:12]} Bxd5 {[%emt 0:10:33]} 14. exd5 {[%emt 0:00:01]} e5 {[%emt 0:00:04]} 15. Be3 {[%emt 0:03:34]} Be7 {[%emt 0:02:12]} 16. Qg3 {[%emt 0:01:56]} g6 {[%emt 0:00:57]} 17. Qe1 {[%emt 0:05:12]} Kf8 {[%emt 0:02:51]} 18. h4 {[%emt 0:04:28]} Kg7 {[%emt 0:04:02]} 19. f4 {[%emt 0:02:45]} Nd7 {[%emt 0:14:14]} 20. h5 {[%emt 0:04:01]} Bf6 {[%emt 0:02:39]} 21. hxg6 {[%emt 0:01:24]} fxg6 {[%emt 0:00:02]} 22. fxe5 {[%emt 0:04:18]} Nxe5 {[%emt 0:00:39]} 23. Bd4 {[%emt 0:01:43]} Qc8 {[%emt 0:07:49]} 24. Bxe5 {[%emt 0:01:31]} Bxe5 {[%emt 0:00:03]} 25. Bd3 {[%emt 0:01:36]} Qg4 {[%emt 0:00:30]} 26. Qe4 {[%emt 0:02:15]} Qxe4 {[%emt 0:01:03]} 27. Bxe4 {[%emt 0:00:01]} b4 {[%emt 0:03:54]} 28. Rd3 {[%emt 0:04:13]} a5 {[%emt 0:00:03]} 29. a4 {[%emt 0:01:47]} bxa3 {[%emt 0:00:30]} 30. Rxa3 {[%emt 0:01:59]} Rhb8 {[%emt 0:01:02]} 31. c3 {[%emt 0:00:56]} Rb5 {[%emt 0:01:38]} 32. Kc2 {[%emt 0:05:35]} Rab8 {[%emt 0:02:47]} 33. b3 {[%emt 0:00:13]} Rc5 {[%emt 0:00:57]} 34. c4 {[%emt 0:00:16]} Rf8 {[%emt 0:00:07]} 35. Bf3 {[%emt 0:02:38]} h5 {[%emt 0:00:05]} 36. Re1 {[%emt 0:01:00]} Kh6 {[%emt 0:00:44]} 37. Kd3 {[%emt 0:01:09]} g5 {[%emt 0:05:24]} 38. Rh1 {[%emt 0:03:05]} h4 {[%emt 0:00:02]} 39. Re1 {[%emt 0:00:11]} h3 {[%emt 0:00:11]} 40. Ra2 {[%emt 0:02:51]} h2 {[%emt 0:07:20]} 41. Ke2 {[%emt 0:34:01]} Bg3 {[%emt 0:30:06]} 42. Rh1 {[%emt 0:03:27]} g4 {[%emt 0:00:09]} 43. Ke3 {[%emt 0:00:32]} gxf3 {[%emt 0:00:13]} 44. gxf3 {[%emt 0:00:02]} Re8+ {[%emt 0:00:50]} 45. Kd3 {[%emt 0:00:08]} Kg5 {[%emt 0:00:31]} 0-1

[Event "11th LCC FIDE Open 2019"]
[Site "London"]
[Date "2019.12.01"]
[Round "4.24"]
[White "Van Zyl-Rudd, Jack"]
[Black "Coote, Trevor D"]
[Result "1-0"]
[ECO "C11"]
[WhiteElo "2290"]
[BlackElo "2075"]
[Annotator "ChessBase"]
[PlyCount "81"]
[EventDate "2019.11.29"]
[EventType "swiss"]
[EventCountry "ENG"]
[SourceTitle "playchess.com"]
[Source "ChessBase"]
[SourceQuality "1"]
[TimeControl "40/5400+30:1800+30"]

1. e4 {[%emt 0:02:05]} e6 {[%emt 0:00:00]} 2. d4 {[%emt 0:00:10]} d5 {[%emt 0:00:00]} 3. Nc3 {[%emt 0:00:06]} Nf6 {[%emt 0:00:00]} 4. e5 {[%emt 0:00:05]} Nfd7 {[%emt 0:00:00]} 5. f4 {[%emt 0:00:05]} c5 {[%emt 0:00:00]} 6. Nf3 {[%emt 0:00:04]} Nc6 {[%emt 0:00:01]} 7. Be3 {[%emt 0:00:04]} cxd4 {[%emt 0:00:13]} 8. Nxd4 {[%emt 0:00:05]} Bc5 {[%emt 0:00:07]} 9. Qd2 {[%emt 0:00:41]} Nxd4 {[%emt 0:03:52]} 10. Bxd4 {[%emt 0:00:06]} O-O {[%emt 0:00:06]} 11. O-O-O {[%emt 0:00:22]} f6 {[%emt 0:00:32]} 12. exf6 {[%emt 0:09:06]} Bxd4 {[%emt 0:00:27]} 13. Qxd4 {[%emt 0:00:03]} Qxf6 {[%emt 0:00:12]} 14. g3 {[%emt 0:00:05]} Qxd4 {[%emt 0:07:50]} 15. Rxd4 {[%emt 0:00:06]} Nb8 {[%emt 0:00:10]} 16. Bh3 {[%emt 0:04:34]} Nc6 {[%emt 0:06:30]} 17. Rd2 {[%emt 0:02:50]} d4 {[%emt 0:22:09]} 18. Nb5 {[%emt 0:06:14]} e5 {[%emt 0:09:41]} 19. Bxc8 {[%emt 0:00:08]} Raxc8 {[%emt 0:00:12]} 20. fxe5 {[%emt 0:00:07]} Nxe5 {[%emt 0:05:40]} 21. Nxd4 {[%emt 0:00:28]} Rc4 {[%emt 0:07:51]} 22. b3 {[%emt 0:01:52]} Rcc8 {[%emt 0:02:04]} 23. Re1 {[%emt 0:01:04]} Rfe8 {[%emt 0:01:57]} 24. Ree2 {[%emt 0:04:49]} a6 {[%emt 0:03:01]} 25. a4 {[%emt 0:01:26]} Rc5 {[%emt 0:03:59]} 26. Kb2 {[%emt 0:02:23]} b5 {[%emt 0:04:30]} 27. axb5 {[%emt 0:00:33]} axb5 {[%emt 0:00:04]} 28. Nf3 {[%emt 0:04:34]} Kf7 {[%emt 0:02:10]} 29. Nxe5+ {[%emt 0:00:09]} Rcxe5 {[%emt 0:00:50]} 30. Rxe5 {[%emt 0:06:12]} Rxe5 {[%emt 0:00:49]} 31. Kc3 {[%emt 0:01:24]} Ke6 {[%emt 0:01:44]} 32. Kb4 {[%emt 0:00:33]} g5 {[%emt 0:02:05]} 33. c4 {[%emt 0:02:22]} bxc4 {[%emt 0:00:36]} 34. bxc4 {[%emt 0:00:03]} Re1 {[%emt 0:00:25]} 35. c5 {[%emt 0:00:24]} Rb1+ {[%emt 0:00:33]} 36. Ka5 {[%emt 0:00:06]} h5 {[%emt 0:00:15]} 37. c6 {[%emt 0:00:05]} Rc1 {[%emt 0:06:25]} 38. Kb6 {[%emt 0:00:06]} Rb1+ {[%emt 0:00:25]} 39. Ka7 {[%emt 0:00:05]} Ra1+ {[%emt 0:00:36]} 40. Kb8 {[%emt 0:00:05]} Rb1+ {[%emt 0:00:19]} 41. Kc8 {[%emt 0:30:05]} 1-0